fUSD/lending_fUSD_20240904
["ID","MTS","AMOUNT","RATE_DAILY","PERIOD"]
[337131640,1725449462148,-2191.73,0.00014557,2]
[337131641,1725449462335,-2886.04,0.00014557,2]
[337131642,1725449462346,-5307.94,0.00014557,2]
[337131643,1725449462361,-1668.35,0.00014557,2]
[337131644,1725449462370,-3836.89,0.00014557,2]
[337131645,1725449462380,-1987.06,0.00014557,2]
[337131646,1725449462390,-6705.01,0.00014557,2]
[337131647,1725449462401,-3942.48,0.00014557,2]
[337131648,1725449462411,-2468.26,0.00014557,2]
[337131649,1725449462421,-3967.05,0.00014557,2]
[337131650,1725449462433,-3336.2,0.00014557,2]
[337131651,1725449462444,-17292.54,0.00014557,2]
[337131652,1725449462455,-1717.06,0.00014557,2]
[337131653,1725449462466,-12177.64,0.00014557,2]
[337131654,1725449462475,-13920.9,0.00014557,2]
[337131655,1725449462485,-3322.17,0.00014557,2]
[337131656,1725449462494,-1012.16,0.00014557,2]
[337131657,1725449462503,-8049.63,0.00014557,2]
[337131658,1725449462512,-2670.62,0.00014557,2]
[337131659,1725449462523,-4068.02,0.00014557,2]
[337131660,1725449462532,-500.0,0.00014557,2]
[337131661,1725449462542,-500.0,0.00014557,2]
[337131662,1725449462552,-500.0,0.00014557,2]
[337131663,1725449462562,-500.0,0.00014557,2]
[337131664,1725449462572,-500.0,0.00014558,2]
[337131665,1725449462582,-413.04505309,0.00014558,2]
[337131666,1725449462591,-500.0,0.00014558,2]
[337131667,1725449462601,-500.0,0.00014558,2]
[337131668,1725449462611,-500.0,0.00014558,2]
[337131669,1725449462621,-500.0,0.00014558,2]
[337131670,1725449462631,-500.0,0.00014558,2]
[337131671,1725449462640,-500.0,0.00014558,2]
[337131672,1725449462649,-500.0,0.00014558,2]
[337131673,1725449462658,-500.0,0.00014558,2]
[337131674,1725449462668,-500.0,0.00014558,2]
[337131675,1725449462678,-500.0,0.00014558,2]
[337131676,1725449462687,-500.0,0.00014558,2]
[337131677,1725449462696,-500.0,0.00014558,2]
[337131678,1725449462707,-500.0,0.00014558,2]
[337131679,1725449462717,-532.57927254,0.00014558,2]
[337131680,1725449462727,-500.0,0.00014558,2]
[337131681,1725449462737,-568.02,0.00014558,2]
[337131682,1725449462747,-500.0,0.00014558,2]
[337131683,1725449462756,-500.0,0.00014558,2]
[337131684,1725449462766,-610.91,0.00014558,2]
[337131685,1725449462776,-500.0,0.00014558,2]
[337131686,1725449462787,-500.0,0.00014558,2]
[337131687,1725449462798,-565.66,0.00014558,2]
[337131688,1725449462807,-603.44,0.00014558,2]
[337131689,1725449462818,-712.46,0.00014558,2]
[337131690,1725449462827,-500.0,0.00014558,2]
[337131691,1725449462837,-1009.68,0.00014558,2]
[337131692,1725449462846,-1063.22,0.00014558,2]
[337131693,1725449462856,-500.0,0.00014558,2]
[337131694,1725449462865,-1426.19,0.00014558,2]
[337131695,1725449462875,-500.0,0.00014558,2]
[337131696,1725449462885,-1054.11,0.00014558,2]
[337131697,1725449462895,-918.12,0.00014558,2]
[337131698,1725449462905,-1075.31,0.00014558,2]
[337131699,1725449462915,-734.61,0.00014558,2]
[337131700,1725449462925,-500.0,0.00014558,2]
[337131701,1725449462934,-500.0,0.00014558,2]
[337131702,1725449462944,-500.0,0.00014558,2]
[337131703,1725449462954,-500.0,0.00014558,2]
[337131704,1725449462964,-885.47,0.00014558,2]
[337131705,1725449462973,-500.0,0.00014558,2]
[337131706,1725449462982,-500.0,0.00014558,2]
[337131707,1725449462992,-500.0,0.00014558,2]
[337131708,1725449463002,-503.81,0.00014558,2]
[337131709,1725449463011,-500.0,0.00014558,2]
[337131710,1725449463021,-516.11,0.00014558,2]
[337131711,1725449463031,-500.0,0.00014558,2]
[337131712,1725449463043,-988.12,0.00014558,2]
[337131713,1725449463053,-500.0,0.00014558,2]
[337131714,1725449463063,-644.05443157,0.00014558,2]
[337131715,1725449463073,-500.0,0.00014558,2]
[337131716,1725449463083,-500.0,0.00014558,2]
[337131717,1725449463092,-845.51,0.00014558,2]
[337131718,1725449463102,-500.0,0.00014558,2]
[337131719,1725449463112,-500.0,0.00014558,2]
[337131720,1725449463121,-500.0,0.00014558,2]
[337131721,1725449463131,-1357.91,0.00014558,2]
[337131722,1725449463141,-972.7,0.00014558,2]
[337131723,1725449463151,-500.0,0.00014558,2]
[337131724,1725449463160,-1013.39,0.00014558,2]
[337131725,1725449463170,-888.72,0.00014558,2]
[337131726,1725449463181,-500.0,0.00014558,2]
[337131727,1725449463192,-828.69,0.00014558,2]
[337131728,1725449463203,-648.0,0.00014558,2]
[337131729,1725449463214,-500.0,0.00014558,2]
[337131730,1725449463225,-1871.22,0.00014558,2]
[337131731,1725449463235,-500.0,0.00014558,2]
[337131732,1725449463245,-500.0,0.00014558,2]
[337131733,1725449463255,-1389.3,0.00014558,2]
[337131734,1725449463264,-500.0,0.00014558,2]
[337131735,1725449463274,-1572.14,0.00014558,2]
[337131736,1725449463287,-500.0,0.00014558,2]
[337131737,1725449463297,-500.0,0.00014558,2]
[337131738,1725449463307,-500.0,0.00014558,2]
[337131739,1725449463317,-2275.34,0.00014558,2]
[337131740,1725449463327,-790.14,0.00014558,2]
[337131741,1725449463337,-777.19,0.00014558,2]
[337131742,1725449463348,-725.73,0.00014558,2]
[337131743,1725449463362,-844.88,0.00014558,2]
[337131744,1725449463372,-500.0,0.00014558,2]
[337131745,1725449463382,-500.0,0.00014558,2]
[337131746,1725449463391,-500.0,0.00014558,2]
[337131747,1725449463402,-500.0,0.00014558,2]
[337131748,1725449463411,-500.0,0.00014558,2]
[337131749,1725449463421,-532.91,0.00014558,2]
[337131750,1725449463431,-500.0,0.00014558,2]
[337131751,1725449463441,-1190.22,0.00014558,2]
[337131752,1725449463451,-832.04,0.00014558,2]
[337131753,1725449463461,-823.37,0.00014558,2]
[337131754,1725449463471,-972.52,0.00014558,2]
[337131755,1725449463481,-751.27,0.00014558,2]
[337131756,1725449463491,-1119.83,0.00014558,2]
[337131757,1725449463501,-762.25,0.00014558,2]
[337131758,1725449463510,-504.7,0.00014558,2]
[337131759,1725449463520,-500.0,0.00014558,2]
[337131760,1725449463529,-500.0,0.00014558,2]
[337131761,1725449463541,-603.6,0.00014558,2]
[337131762,1725449463553,-904.6,0.00014558,2]
[337131763,1725449463562,-500.0,0.00014558,2]
[337131764,1725449463573,-874.35,0.00014558,2]
[337131765,1725449463583,-500.0,0.00014558,2]
[337131766,1725449463593,-500.0,0.00014558,2]
[337131767,1725449463603,-500.0,0.00014558,2]
[337131768,1725449463613,-500.0,0.00014558,2]
[337131769,1725449463623,-669.03,0.00014558,2]
[337131770,1725449463633,-586.58,0.00014558,2]
[337131771,1725449463643,-500.0,0.00014558,2]
[337131772,1725449463653,-671.44,0.00014558,2]
[337131773,1725449463662,-616.06,0.00014558,2]
[337131774,1725449463672,-500.0,0.00014558,2]
[337131775,1725449463682,-591.9,0.00014558,2]
[337131776,1725449463692,-927.84,0.00014558,2]
[337131777,1725449463701,-156.38829321,0.00014558,2]
[337131778,1725449463711,-500.0,0.00014558,2]
[337131779,1725449463721,-1611.6,0.00014558,2]
[337131780,1725449463731,-500.0,0.00014558,2]
[337131781,1725449463741,-674.07,0.00014558,2]
[337131782,1725449463751,-1927.93,0.00014558,2]
[337131783,1725449463761,-752.13,0.00014558,2]
[337131784,1725449463770,-500.0,0.00014558,2]
[337131785,1725449463780,-584.69689103,0.00014558,2]
[337131786,1725449463792,-500.0,0.00014558,2]
[337131787,1725449463802,-500.0,0.00014558,2]
[337131788,1725449463812,-500.0,0.00014558,2]
[337131789,1725449463822,-655.38,0.00014558,2]
[337131790,1725449463832,-640.53,0.00014558,2]
[337131791,1725449463842,-972.15,0.00014558,2]
[337131792,1725449463852,-1064.77,0.00014558,2]
[337131793,1725449463863,-241.89975273,0.00014558,2]
[337131794,1725449463873,-607.16,0.00014558,2]
[337131795,1725449463885,-545.86,0.00014558,2]
[337131796,1725449463895,-735.52,0.00014558,2]
[337131797,1725449463906,-551.1,0.00014558,2]
[337131798,1725449463916,-500.0,0.00014558,2]
[337131799,1725449463926,-500.0,0.00014558,2]
[337131800,1725449463936,-500.0,0.00014558,2]
[337131801,1725449463946,-500.0,0.00014558,2]
[337131802,1725449463955,-500.0,0.00014558,2]
[337131803,1725449463965,-500.0,0.00014558,2]
[337131804,1725449463975,-428.79911529,0.00014558,2]
[337131805,1725449463984,-1307.82,0.00014558,2]
[337131806,1725449463994,-1486.71,0.00014558,2]
[337131807,1725449464004,-500.0,0.00014558,2]
[337131808,1725449464014,-500.0,0.00014558,2]
[337131809,1725449464024,-963.69,0.00014558,2]
[337131810,1725449464036,-500.0,0.00014558,2]
[337131811,1725449464047,-500.0,0.00014558,2]
[337131812,1725449464058,-500.0,0.00014558,2]
[337131813,1725449464068,-421.43624616,0.00014558,2]
[337131814,1725449464078,-509.61231724,0.00014558,2]
[337131815,1725449464088,-500.0,0.00014558,2]
[337131816,1725449464098,-500.0,0.00014558,2]
[337131817,1725449464109,-500.0,0.00014558,2]
[337131818,1725449464119,-500.0,0.00014558,2]
[337131819,1725449464129,-3148.4,0.00014559,2]
[337131820,1725449464140,-500.0,0.00014559,2]
[337131821,1725449464149,-500.0,0.00014559,2]
[337131822,1725449464159,-159.36,0.00014559,2]
[337131823,1725449464170,-2030.75,0.00014559,2]
[337131824,1725449464180,-528.34,0.00014559,2]
[337131825,1725449464190,-500.0,0.00014559,2]
[337131826,1725449464200,-159.52,0.00014559,2]
[337131827,1725449464210,-533.47,0.00014559,2]
[337131828,1725449464220,-974.58,0.00014559,2]
[337131829,1725449464230,-500.0,0.00014559,2]
[337131830,1725449464240,-520.8,0.00014559,2]
[337131831,1725449464250,-518.06,0.00014559,2]
[337131832,1725449464260,-500.0,0.00014559,2]
[337131833,1725449464270,-500.0,0.00014559,2]
[337131834,1725449464280,-500.0,0.00014559,2]
[337131835,1725449464295,-500.0,0.00014559,2]
[337131836,1725449464305,-500.0,0.0001456,2]
[337131837,1725449464314,-500.0,0.0001456,2]
[337131838,1725449464324,-1208.79,0.0001456,2]
[337131839,1725449464333,-1208.79,0.0001456,2]
[337131840,1725449464343,-513.52,0.0001456,2]
[337131841,1725449464355,-513.52,0.0001456,2]
[337131842,1725449464365,-500.0,0.0001456,2]
[337131843,1725449464374,-500.0,0.0001456,2]
[337131844,1725449464384,-500.0,0.0001456,2]
[337131845,1725449464394,-500.0,0.0001456,2]
[337131846,1725449464404,-539.51,0.0001456,2]
[337131847,1725449464414,-539.51,0.0001456,2]
[337131848,1725449464424,-975.62,0.0001456,2]
[337131849,1725449464436,-975.62,0.0001456,2]
[337131850,1725449464445,-500.0,0.0001456,2]
[337131851,1725449464455,-500.0,0.0001456,2]
[337131852,1725449464465,-641.61,0.0001456,2]
[337131853,1725449464474,-641.61,0.0001456,2]
[337131854,1725449464484,-500.0,0.0001456,2]
[337131855,1725449464494,-500.0,0.0001456,2]
[337131856,1725449464575,-653.03,0.0001456,2]
[337131857,1725449464585,-653.03,0.0001456,2]
[337131858,1725449464595,-657.0,0.0001456,2]
[337131859,1725449464605,-657.0,0.0001456,2]
[337131860,1725449464614,-646.17,0.0001456,2]
[337131861,1725449464624,-646.17,0.0001456,2]
[337131862,1725449464633,-769.15,0.0001456,2]
[337131863,1725449464643,-769.15,0.0001456,2]
[337131864,1725449464652,-600.5,0.0001456,2]
[337131865,1725449464661,-600.5,0.0001456,2]
[337131866,1725449464671,-878.21,0.0001456,2]
[337131867,1725449464680,-878.21,0.0001456,2]
[337131868,1725449464689,-735.12,0.0001456,2]
[337131869,1725449464698,-1122.8,0.0001456,2]
[337131870,1725449464708,-1264.8,0.0001456,2]
[337131871,1725449464717,-23201.5,0.0001456,2]
[337131872,1725449464726,-1258.15,0.0001456,2]
[337131873,1725449464736,-5539.45,0.0001456,2]
[337131874,1725449464745,-1688.75,0.0001456,2]
[337131875,1725449464755,-1814.06,0.0001456,2]
[337131876,1725449464764,-13416.06,0.0001456,2]
[337131877,1725449464774,-535.76,0.0001456,2]
[337131878,1725449464783,-2485.24,0.0001456,2]
[337131879,1725449464795,-3433.42,0.0001456,2]
[337131880,1725449464805,-2953.99,0.0001456,2]
[337131881,1725449464815,-1692.86,0.0001456,2]
[337131882,1725449464824,-2697.86,0.0001456,2]
[337131883,1725449464833,-2455.98,0.0001456,2]
[337131884,1725449464842,-1458.47,0.0001456,2]
[337131885,1725449464851,-1539.43,0.0001456,2]
[337131886,1725449464861,-1663.46,0.0001456,2]
[337131887,1725449464870,-1537.73,0.0001456,2]
[337131888,1725449464879,-2881.94,0.0001456,2]
[337131889,1725449464888,-1998.34,0.0001456,2]
[337131890,1725449464898,-1619.01,0.0001456,2]
[337131891,1725449464907,-3130.22,0.0001456,2]
[337131892,1725449464916,-1955.73,0.0001456,2]
[337131893,1725449464926,-2371.43,0.0001456,2]
[337131894,1725449464935,-1686.85,0.0001456,2]
[337131895,1725449464944,-2723.93,0.0001456,2]
[337131896,1725449464953,-2514.65,0.0001456,2]
[337131897,1725449464963,-2580.18,0.0001456,2]
[337131898,1725449464972,-2090.96,0.0001456,2]
[337131899,1725449464981,-2568.97,0.0001456,2]
[337131900,1725449464991,-1849.72,0.0001456,2]
[337131901,1725449465000,-4004.18,0.0001456,2]
[337131902,1725449465009,-5088.19,0.0001456,2]
[337131903,1725449465018,-3368.35,0.0001456,2]
[337131904,1725449465027,-5233.57,0.0001456,2]
[337131905,1725449465040,-2722.26,0.0001456,2]
[337131906,1725449465049,-4120.65,0.0001456,2]
[337131907,1725449465059,-3266.49,0.0001456,2]
[337131908,1725449465068,-2686.82,0.0001456,2]
[337131909,1725449465077,-3467.38,0.0001456,2]
[337131910,1725449465086,-2725.67,0.0001456,2]
[337131911,1725449465096,-1969.53,0.0001456,2]
[337131912,1725449465105,-2189.75,0.0001456,2]
[337131913,1725449465114,-4297.84,0.0001456,2]
[337131914,1725449465124,-3268.74,0.0001456,2]
[337131915,1725449465133,-735.12,0.00014561,2]
[337131916,1725449465142,-1122.8,0.00014561,2]
[337131917,1725449465152,-1264.8,0.00014561,2]
[337131918,1725449465162,-1258.15,0.00014561,2]
[337131919,1725449465172,-1814.06,0.00014561,2]
[337131920,1725449465181,-2485.24,0.00014561,2]
[337131921,1725449465191,-1692.86,0.00014561,2]
[337131922,1725449465200,-1621.85,0.00014561,2]
[337131923,1725449465209,-2881.94,0.00014561,2]
[337131924,1725449465218,-6092.26,0.00014561,2]
[337131925,1725449465227,-1434.96,0.00014561,2]
[337131926,1725449465237,-2641.74,0.00014561,2]
[337131927,1725449465247,-1743.77,0.00014561,2]
[337131928,1725449465256,-2069.39,0.00014561,2]
[337131929,1725449465266,-4222.26,0.00014561,2]
[337131930,1725449465275,-2718.35,0.00014561,2]
[337131931,1725449465284,-2191.73,0.00014561,2]
[337131932,1725449465303,-2886.04,0.00014561,2]
[337131933,1725449465312,-5307.94,0.00014561,2]
[337131934,1725449465321,-1668.35,0.00014561,2]
[337131935,1725449465330,-3836.89,0.00014561,2]
[337131936,1725449465339,-1987.06,0.00014561,2]
[337131937,1725449465349,-6705.01,0.00014561,2]
[337131938,1725449465360,-3942.48,0.00014561,2]
[337131939,1725449465369,-2468.26,0.00014561,2]
[337131940,1725449465378,-3967.05,0.00014561,2]
[337131941,1725449465387,-3336.2,0.00014561,2]
[337131942,1725449465397,-17292.54,0.00014561,2]
[337131943,1725449465407,-1717.06,0.00014561,2]
[337131944,1725449465417,-12177.64,0.00014561,2]
[337131945,1725449465427,-13920.9,0.00014561,2]
[337131946,1725449465437,-3322.17,0.00014561,2]
[337131947,1725449465447,-1012.16,0.00014561,2]
[337131948,1725449465456,-8049.63,0.00014561,2]
[337131949,1725449465466,-2670.62,0.00014561,2]
[337131950,1725449465475,-4068.02,0.00014561,2]
[337131951,1725449465485,-500.0,0.00014561,2]
[337131952,1725449465494,-500.0,0.00014561,2]
[337131953,1725449465504,-500.0,0.00014561,2]
[337131954,1725449465513,-500.0,0.00014561,2]
[337131955,1725449465523,-159.52,0.00014561,2]
[337131956,1725449465532,-533.47,0.00014561,2]
[337131957,1725449465547,-500.0,0.00014561,2]
[337131958,1725449465557,-735.12,0.00014562,2]
[337131959,1725449465566,-1122.8,0.00014562,2]
[337131960,1725449465576,-1264.8,0.00014562,2]
[337131961,1725449465586,-1258.15,0.00014562,2]
[337131962,1725449465595,-1814.06,0.00014562,2]
[337131963,1725449465605,-2485.24,0.00014562,2]
[337131964,1725449465614,-1692.86,0.00014562,2]
[337131965,1725449465624,-2881.94,0.00014562,2]
[337131966,1725449465634,-2461.64325602,0.00014564,2]
[337131967,1725449465643,-4923.28651204,0.00014565,2]
[337131968,1725449465653,-23201.5,0.00014566,2]
[337131969,1725449465664,-5539.45,0.00014566,2]
[337131970,1725449465674,-1688.75,0.00014566,2]
[337131971,1725449465684,-13416.06,0.00014566,2]
[337131972,1725449465694,-535.76,0.00014566,2]
[337131973,1725449465704,-3433.42,0.00014566,2]
[337131974,1725449465714,-2953.99,0.00014566,2]
[337131975,1725449465723,-2697.86,0.00014566,2]
[337131976,1725449465733,-2455.98,0.00014566,2]
[337131977,1725449465743,-1458.47,0.00014566,2]
[337131978,1725449465753,-1539.43,0.00014566,2]
[337131979,1725449465763,-1663.46,0.00014566,2]
[337131980,1725449465772,-1537.73,0.00014566,2]
[337131981,1725449465782,-1998.34,0.00014566,2]
[337131982,1725449465794,-1619.01,0.00014566,2]
[337131983,1725449465803,-3130.22,0.00014566,2]
[337131984,1725449465813,-1955.73,0.00014566,2]
[337131985,1725449465823,-2371.43,0.00014566,2]
[337131986,1725449465833,-1686.85,0.00014566,2]
[337131987,1725449465843,-2723.93,0.00014566,2]
[337131988,1725449465852,-3148.4,0.00014566,2]
[337131989,1725449465862,-2514.65,0.00014566,2]
[337131990,1725449465872,-2580.18,0.00014566,2]
[337131991,1725449465882,-2090.96,0.00014566,2]
[337131992,1725449465892,-500.0,0.00014566,2]
[337131993,1725449465902,-2568.97,0.00014566,2]
[337131994,1725449465912,-500.0,0.00014566,2]
[337131995,1725449465922,-2030.75,0.00014566,2]
[337131996,1725449465932,-528.34,0.00014566,2]
[337131997,1725449465943,-500.0,0.00014566,2]
[337131998,1725449465955,-1849.72,0.00014566,2]
[337131999,1725449465966,-4004.18,0.00014566,2]
[337132000,1725449465975,-5088.19,0.00014566,2]
[337132001,1725449465984,-3368.35,0.00014566,2]
[337132002,1725449465994,-5233.57,0.00014566,2]
[337132003,1725449466003,-2722.26,0.00014566,2]
[337132004,1725449466013,-4120.65,0.00014566,2]
[337132005,1725449466023,-3266.49,0.00014566,2]
[337132006,1725449466033,-2686.82,0.00014566,2]
[337132007,1725449466044,-3467.38,0.00014566,2]
[337132008,1725449466054,-2725.67,0.00014566,2]
[337132009,1725449466064,-159.52,0.00014566,2]
[337132010,1725449466073,-159.52,0.00014566,2]
[337132011,1725449466084,-159.52,0.00014566,2]
[337132012,1725449466098,-159.52,0.00014566,2]
[337132013,1725449466108,-159.52,0.00014566,2]
[337132014,1725449466120,-159.52,0.00014566,2]
[337132015,1725449466130,-159.52,0.00014566,2]
[337132016,1725449466146,-159.52,0.00014566,2]
[337132017,1725449466157,-159.52,0.00014566,2]
[337132018,1725449466168,-159.57781102,0.00014566,2]
[337132019,1725449466178,-1969.53,0.00014566,2]
[337132020,1725449466188,-2189.75,0.00014566,2]
[337132021,1725449466198,-4297.84,0.00014566,2]
[337132022,1725449466208,-3268.74,0.00014566,2]
[337132023,1725449466218,-533.47,0.00014566,2]
[337132024,1725449466228,-533.47,0.00014566,2]
[337132025,1725449466238,-533.47,0.00014566,2]
[337132026,1725449466248,-533.47,0.00014566,2]
[337132027,1725449466259,-533.47,0.00014566,2]
[337132028,1725449466270,-533.47,0.00014566,2]
[337132029,1725449466280,-533.47,0.00014566,2]
[337132030,1725449466292,-533.47,0.00014566,2]
[337132031,1725449466303,-533.47,0.00014566,2]
[337132032,1725449466313,-533.50322499,0.00014566,2]
[337132033,1725449466323,-974.58,0.00014566,2]
[337132034,1725449466332,-500.0,0.00014566,2]
[337132035,1725449466342,-520.8,0.00014566,2]
[337132036,1725449466352,-518.06,0.00014566,2]
[337132037,1725449466365,-500.0,0.00014566,2]
[337132038,1725449466374,-500.0,0.00014566,2]
[337132039,1725449466384,-500.0,0.00014566,2]
[337132040,1725449466395,-500.0,0.00014566,2]
[337132041,1725449466405,-500.0,0.00014566,2]
[337132042,1725449466414,-500.0,0.00014566,2]
[337132043,1725449466424,-500.0,0.00014566,2]
[337132044,1725449466435,-500.0,0.00014566,2]
[337132045,1725449466446,-328.87558966,0.00014566,2]
[337132046,1725449466455,-500.0,0.00014566,2]
[337132047,1725449466465,-336.38447735,0.00014567,2]
[337132048,1725449466475,-615.29147054,0.00014567,2]
[337132049,1725449466485,-500.0,0.00014567,2]
[337132050,1725449466495,-500.0,0.00014567,2]
[337132051,1725449466505,-500.0,0.00014567,2]
[337132052,1725449466514,-500.0,0.00014567,2]
[337132053,1725449466524,-500.0,0.00014567,2]
[337132054,1725449466538,-500.0,0.00014567,2]
[337132055,1725449466548,-850.78,0.00014567,2]
[337132056,1725449466558,-283.21531213,0.00014567,2]
[337132057,1725449466567,-500.0,0.00014567,2]
[337132058,1725449466577,-611.49,0.00014567,2]
[337132059,1725449466587,-1163.73,0.00014567,2]
[337132060,1725449466597,-500.0,0.00014567,2]
[337132061,1725449466607,-1101.55,0.00014567,2]
[337132062,1725449466617,-500.0,0.00014567,2]
[337132063,1725449466627,-957.91,0.00014567,2]
[337132064,1725449466638,-1400.93,0.00014567,2]
[337132065,1725449466648,-500.0,0.00014567,2]
[337132066,1725449466657,-500.0,0.00014567,2]
[337132067,1725449466667,-500.0,0.00014567,2]
[337132068,1725449466678,-602.85,0.00014567,2]
[337132069,1725449466688,-500.0,0.00014567,2]
[337132070,1725449466699,-500.0,0.00014567,2]
[337132071,1725449466709,-680.99,0.00014567,2]
[337132072,1725449466718,-737.84,0.00014567,2]
[337132073,1725449466731,-555.09,0.00014567,2]
[337132074,1725449466743,-500.0,0.00014567,2]
[337132075,1725449466753,-500.0,0.00014567,2]
[337132076,1725449466763,-500.0,0.00014567,2]
[337132077,1725449466773,-1032.23,0.00014567,2]
[337132078,1725449466782,-531.28,0.00014567,2]
[337132079,1725449466794,-1090.29,0.00014567,2]
[337132080,1725449466804,-500.0,0.00014567,2]
[337132081,1725449466814,-500.0,0.00014567,2]
[337132082,1725449466824,-500.0,0.00014567,2]
[337132083,1725449466834,-500.0,0.00014567,2]
[337132084,1725449466844,-500.0,0.00014567,2]
[337132085,1725449466854,-500.0,0.00014567,2]
[337132086,1725449466864,-500.0,0.00014567,2]
[337132087,1725449466874,-500.0,0.00014567,2]
[337132088,1725449466884,-500.0,0.00014567,2]
[337132089,1725449466894,-500.0,0.00014567,2]
[337132090,1725449466905,-500.0,0.00014567,2]
[337132091,1725449466915,-500.0,0.00014567,2]
[337132092,1725449466925,-500.0,0.00014567,2]
[337132093,1725449466935,-660.36,0.00014567,2]
[337132094,1725449466945,-500.0,0.00014567,2]
[337132095,1725449466955,-500.0,0.00014567,2]
[337132096,1725449466964,-500.0,0.00014567,2]
[337132097,1725449466974,-500.0,0.00014567,2]
[337132098,1725449466984,-786.19,0.00014567,2]
[337132099,1725449466993,-1202.42,0.00014567,2]
[337132100,1725449467003,-500.0,0.00014567,2]
[337132101,1725449467012,-500.0,0.00014567,2]
[337132102,1725449467022,-500.0,0.00014567,2]
[337132103,1725449467031,-659.28,0.00014567,2]
[337132104,1725449467043,-500.0,0.00014567,2]
[337132105,1725449467053,-463.46707941,0.00014567,2]
[337132106,1725449467063,-650.85,0.00014567,2]
[337132107,1725449467074,-256.27259898,0.00014567,2]
[337132108,1725449467083,-862.21,0.00014567,2]
[337132109,1725449467094,-524.35,0.00014567,2]
[337132110,1725449467104,-500.0,0.00014567,2]
[337132111,1725449467114,-540.61,0.00014567,2]
[337132112,1725449467124,-500.0,0.00014567,2]
[337132113,1725449467134,-1723.04,0.00014567,2]
[337132114,1725449467144,-500.0,0.00014567,2]
[337132115,1725449467154,-500.0,0.00014567,2]
[337132116,1725449467165,-500.0,0.00014567,2]
[337132117,1725449467175,-500.0,0.00014567,2]
[337132118,1725449467185,-500.0,0.00014567,2]
[337132119,1725449467195,-1135.56,0.00014567,2]
[337132120,1725449467204,-500.0,0.00014567,2]
[337132121,1725449467214,-1532.66,0.00014567,2]
[337132122,1725449467224,-1762.58,0.00014567,2]
[337132123,1725449467234,-500.0,0.00014567,2]
[337132124,1725449467244,-892.7,0.00014567,2]
[337132125,1725449467258,-500.0,0.00014567,2]
[337132126,1725449467269,-1403.23,0.00014567,2]
[337132127,1725449467278,-1519.56,0.00014567,2]
[337132128,1725449467289,-500.0,0.00014567,2]
[337132129,1725449467299,-606.34,0.00014567,2]
[337132130,1725449467309,-817.36,0.00014567,2]
[337132131,1725449467319,-500.0,0.00014567,2]
[337132132,1725449467328,-1019.91,0.00014567,2]
[337132133,1725449467339,-500.0,0.00014567,2]
[337132134,1725449467348,-966.96,0.00014567,2]
[337132135,1725449467361,-1262.13,0.00014567,2]
[337132136,1725449467371,-1042.67,0.00014567,2]
[337132137,1725449467380,-500.0,0.00014567,2]
[337132138,1725449467391,-500.0,0.00014567,2]
[337132139,1725449467562,-500.0,0.00014567,2]